[Event "HUN-ch U8-U18 2019"]
[Site "Balatonlelle"]
[Date "2019.06.23"]
[Round "3.16"]
[White "Szalay-Ocsak, Bank"]
[Black "Petroczy, Zoltan"]
[Result "1/2-1/2"]
[ECO "B01"]
[WhiteElo "1826"]
[BlackElo "1517"]
[Annotator "NA"]
[PlyCount "63"]
[EventDate "2019.06.21"]
[EventType "swiss"]
[EventCountry "HUN"]
[SourceTitle "playchess.com"]
[Source "ChessBase"]
[SourceQuality "1"]
[TimeControl "40/5400+30:1800+30"]

1. e4 {[%emt 0:00:01]} d5 {[%emt 0:00:10]} 2. exd5 {[%emt 0:00:07]} Nf6 {[%emt 0:00:08]} 3. d4 {[%emt 0:00:11]} Nxd5 {[%emt 0:00:09]} 4. Nf3 {[%emt 0:00:47]} g6 {[%emt 0:00:12]} 5. c4 {[%emt 0:00:22]} Nb6 {[%emt 0:00:10]} 6. Nc3 {[%emt 0:00:34]} Bg7 {[%emt 0:00:09]} 7. h3 {[%emt 0:00:49]} O-O {[%emt 0:00:12]} 8. Be3 {[%emt 0:02:36]} Nc6 {[%emt 0:00:10]} 9. Qd2 {[%emt 0:02:16]} e5 {[%emt 0:01:03]} 10. d5 {[%emt 0:00:54]} Ne7 {[%emt 0:00:48]} 11. g4 {[%emt 0:15:13]} e4 {[%emt 0:03:03]} 12. Ng5 {[%emt 0:04:02]} f5 {[%emt 0:01:14]} 13. O-O-O {[%emt 0:09:15]} Qe8 {[%emt 0:18:24]} 14. Bd4 {[%emt 0:34:00]} Bh6 {[%emt 0:08:08]} 15. h4 {[%emt 0:02:43]} fxg4 {[%emt 0:08:56]} 16. Ncxe4 {[%emt 0:02:43]} Nd7 {[%emt 0:02:56]} 17. Re1 {[%emt 0:05:54]} Qf7 {[%emt 0:03:46]} 18. Nxf7 {[%emt 0:11:24]} Bxd2+ {[%emt 0:00:24]} 19. Kxd2 {[%emt 0:00:01]} Nf5 {[%emt 0:01:34]} 20. Neg5 {[%emt 0:03:03]} Nxd4 {[%emt 0:00:40]} 21. Nh6+ {[%emt 0:00:28]} Kh8 {[%emt 0:02:28]} 22. Nxg4 {[%emt 0:01:00]} Nc5 {[%emt 0:02:39]} 23. Nh6 {[%emt 0:00:56]} Nf5 {[%emt 0:01:25]} 24. Nxf5 {[%emt 0:00:33]} Bxf5 {[%emt 0:00:39]} 25. Bg2 {[%emt 0:01:39]} Rae8 {[%emt 0:01:04]} 26. Rxe8 {[%emt 0:00:45]} Rxe8 {[%emt 0:00:12]} 27. Ne6 {[%emt 0:00:29]} Nxe6 {[%emt 0:00:27]} 28. dxe6 {[%emt 0:00:24]} Rxe6 {[%emt 0:00:06]} 29. Re1 {[%emt 0:00:39]} Rxe1 {[%emt 0:00:19]} 30. Kxe1 {[%emt 0:00:01]} c6 {[%emt 0:00:45]} 31. Kd2 {[%emt 0:00:35]} Kg7 {[%emt 0:00:14]} 32. Ke3 {[%emt 0:00:36]} 1/2-1/2

[Event "HUN-ch U8-U18 2019"]
[Site "Balatonlelle"]
[Date "2019.06.23"]
[Round "3.17"]
[White "Acs, Marton"]
[Black "Pogany, Zsombor"]
[Result "1-0"]
[ECO "D78"]
[WhiteElo "2138"]
[BlackElo "2121"]
[Annotator "ChessBase"]
[PlyCount "109"]
[EventDate "2019.06.21"]
[EventType "swiss"]
[EventCountry "HUN"]
[SourceTitle "playchess.com"]
[Source "ChessBase"]
[SourceQuality "1"]
[TimeControl "40/5400+30:1800+30"]

1. Nf3 {[%emt 0:00:04]} Nf6 {[%emt 0:00:08]} 2. g3 {[%emt 0:00:12]} d5 {[%emt 0:00:07]} 3. Bg2 {[%emt 0:00:15]} g6 {[%emt 0:00:38]} 4. O-O {[%emt 0:00:42]} Bg7 {[%emt 0:00:06]} 5. d4 {[%emt 0:00:10]} O-O {[%emt 0:00:10]} 6. c4 {[%emt 0:00:07]} c6 {[%emt 0:00:46]} 7. Qb3 {[%emt 0:00:26]} dxc4 {[%emt 0:02:21]} 8. Qxc4 {[%emt 0:00:08]} Nbd7 {[%emt 0:01:27]} 9. Nc3 {[%emt 0:01:13]} Nb6 {[%emt 0:00:15]} 10. Qd3 {[%emt 0:00:34]} Be6 {[%emt 0:01:08]} 11. Rd1 {[%emt 0:04:48]} Bc4 {[%emt 0:06:20]} 12. Qc2 {[%emt 0:00:43]} Nfd5 {[%emt 0:03:33]} 13. e4 {[%emt 0:09:39]} Nxc3 {[%emt 0:00:32]} 14. bxc3 {[%emt 0:02:22]} e6 {[%emt 0:02:21]} 15. Nd2 {[%emt 0:05:08]} Qc7 {[%emt 0:07:52]} 16. a4 {[%emt 0:10:24]} Be2 {[%emt 0:05:16]} 17. Re1 {[%emt 0:00:11]} Ba6 {[%emt 0:00:06]} 18. Nb3 {[%emt 0:04:56]} e5 {[%emt 0:02:40]} 19. a5 {[%emt 0:06:06]} Nc4 {[%emt 0:02:17]} 20. Bf1 {[%emt 0:02:31]} Bb5 {[%emt 0:03:00]} 21. Bd3 {[%emt 0:06:55]} exd4 {[%emt 0:09:08]} 22. cxd4 {[%emt 0:00:19]} Nd6 {[%emt 0:00:11]} 23. Bf4 {[%emt 0:04:08]} Bxd3 {[%emt 0:03:01]} 24. Qxd3 {[%emt 0:01:07]} Qe7 {[%emt 0:01:49]} 25. Rac1 {[%emt 0:02:52]} Rac8 {[%emt 0:04:02]} 26. Kg2 {[%emt 0:12:47]} Rfd8 {[%emt 0:02:09]} 27. d5 {[%emt 0:06:20]} Be5 {[%emt 0:02:20]} 28. Bxe5 {[%emt 0:04:48]} Qxe5 {[%emt 0:00:29]} 29. f4 {[%emt 0:00:29]} Qb2+ {[%emt 0:03:10]} 30. Rc2 {[%emt 0:01:54]} Qa3 {[%emt 0:00:48]} 31. e5 {[%emt 0:00:42]} Nf5 {[%emt 0:00:43]} 32. d6 {[%emt 0:00:34]} c5 {[%emt 0:02:38]} 33. Rc3 {[%emt 0:05:32]} Qb4 {[%emt 0:02:35]} 34. Qc4 {[%emt 0:01:13]} Qa3 {[%emt 0:06:03]} 35. g4 {[%emt 0:01:40]} Ng7 {[%emt 0:03:00]} 36. Ra1 {[%emt 0:00:27]} Qb4 {[%emt 0:00:18]} 37. Qxb4 {[%emt 0:02:23]} cxb4 {[%emt 0:00:05]} 38. Rxc8 {[%emt 0:01:11]} Rxc8 {[%emt 0:00:06]} 39. Rc1 {[%emt 0:01:12]} Rxc1 {[%emt 0:02:34]} 40. Nxc1 {[%emt 0:00:00]} Kf8 {[%emt 0:00:00]} 41. Kf3 {[%emt 0:09:24]} Ke8 {[%emt 0:06:25]} 42. Ke3 {[%emt 0:09:22]} Kd7 {[%emt 0:04:22]} 43. Nd3 {[%emt 0:03:42]} Kc6 {[%emt 0:10:16]} 44. Nxb4+ {[%emt 0:00:56]} Kb5 {[%emt 0:00:08]} 45. Nd5 {[%emt 0:01:58]} Kxa5 {[%emt 0:00:32]} 46. Ke4 {[%emt 0:05:06]} Ne6 {[%emt 0:02:57]} 47. f5 {[%emt 0:00:58]} Nd8 {[%emt 0:00:58]} 48. Nc7 {[%emt 0:00:38]} Kb6 {[%emt 0:03:07]} 49. e6 {[%emt 0:00:26]} gxf5+ {[%emt 0:00:14]} 50. gxf5 {[%emt 0:00:08]} fxe6 {[%emt 0:00:25]} 51. fxe6 {[%emt 0:00:09]} Nxe6 {[%emt 0:00:29]} 52. Nxe6 {[%emt 0:00:06]} Kc6 {[%emt 0:00:06]} 53. Ke5 {[%emt 0:00:07]} b6 {[%emt 0:01:59]} 54. Nf8 {[%emt 0:00:13]} a5 {[%emt 0:00:16]} 55. d7 {[%emt 0:00:16] Kd5+ Ke4+} 1-0

[Event "HUN-ch U8-U18 2019"]
[Site "Balatonlelle"]
[Date "2019.06.23"]
[Round "3.17"]
[White "Magold, Filip"]
[Black "Tancsa, Tamas"]
[Result "0-1"]
[ECO "C71"]
[WhiteElo "1906"]
[BlackElo "2158"]
[Annotator "NA"]
[PlyCount "62"]
[EventDate "2019.06.21"]
[EventType "swiss"]
[EventCountry "HUN"]
[SourceTitle "playchess.com"]
[Source "ChessBase"]
[SourceQuality "1"]
[TimeControl "40/5400+30:1800+30"]

1. e4 {[%emt 0:00:02]} e5 {[%emt 0:00:10]} 2. Nf3 {[%emt 0:00:08]} Nc6 {[%emt 0:00:17]} 3. Bb5 {[%emt 0:00:07]} a6 {[%emt 0:00:28]} 4. Ba4 {[%emt 0:00:07]} d6 {[%emt 0:00:30]} 5. c4 {[%emt 0:00:31]} Nf6 {[%emt 0:00:48]} 6. Nc3 {[%emt 0:00:08]} g6 {[%emt 0:01:30]} 7. h3 {[%emt 0:00:41]} Bg7 {[%emt 0:00:19]} 8. d3 {[%emt 0:00:30]} O-O {[%emt 0:01:37]} 9. Be3 {[%emt 0:03:38]} Ne8 {[%emt 0:04:12]} 10. Bg5 {[%emt 0:14:01]} f6 {[%emt 0:02:12]} 11. Bh4 {[%emt 0:00:34]} g5 {[%emt 0:00:28]} 12. Bg3 {[%emt 0:00:06]} f5 {[%emt 0:00:03]} 13. exf5 {[%emt 0:03:16]} Bxf5 {[%emt 0:00:09]} 14. Ne4 {[%emt 0:04:45]} h6 {[%emt 0:00:19]} 15. O-O {[%emt 0:00:24]} Nf6 {[%emt 0:00:27]} 16. Re1 {[%emt 0:05:23]} Nxe4 {[%emt 0:03:23]} 17. dxe4 {[%emt 0:00:06]} Be6 {[%emt 0:00:05]} 18. Bxc6 {[%emt 0:00:21]} bxc6 {[%emt 0:00:07]} 19. b3 {[%emt 0:00:06]} h5 {[%emt 0:02:47]} 20. Qd2 {[%emt 0:15:53]} Rxf3 {[%emt 0:06:17]} 21. gxf3 {[%emt 0:00:05]} Bxh3 {[%emt 0:00:15]} 22. c5 {[%emt 0:04:21]} Qf6 {[%emt 0:01:35]} 23. Qc3 {[%emt 0:12:41]} h4 {[%emt 0:01:10]} 24. Bh2 {[%emt 0:01:17]} Rf8 {[%emt 0:01:41]} 25. f4 {[%emt 0:13:18]} g4 {[%emt 0:00:32]} 26. f5 {[%emt 0:00:08]} d5 {[%emt 0:01:20]} 27. Qd3 {[%emt 0:06:52]} dxe4 {[%emt 0:00:51]} 28. Qxe4 {[%emt 0:00:31]} g3 {[%emt 0:05:20]} 29. Qc4+ {[%emt 0:00:57]} Rf7 {[%emt 0:00:39]} 30. fxg3 {[%emt 0:00:24]} Qxf5 {[%emt 0:04:21]} 31. Re2 {[%emt 0:08:57]} e4 {[%emt 0:01:20]} 0-1

[Event "HUN-ch U8-U18 2019"]
[Site "Balatonlelle"]
[Date "2019.06.23"]
[Round "3.18"]
[White "Varga, Marcell"]
[Black "Kaloczi, Kristof"]
[Result "0-1"]
[ECO "D15"]
[WhiteElo "2106"]
[BlackElo "2098"]
[Annotator "NA"]
[PlyCount "112"]
[EventDate "2019.06.21"]
[EventType "swiss"]
[EventCountry "HUN"]
[SourceTitle "playchess.com"]
[Source "ChessBase"]
[SourceQuality "1"]
[TimeControl "40/5400+30:1800+30"]

1. c4 {[%emt 0:00:10]} c6 {[%emt 0:00:08]} 2. d4 {[%emt 0:00:44]} d5 {[%emt 0:00:05]} 3. Nc3 {[%emt 0:00:12]} Nf6 {[%emt 0:00:06]} 4. Nf3 {[%emt 0:00:09]} dxc4 {[%emt 0:00:04]} 5. e4 {[%emt 0:05:01]} b5 {[%emt 0:00:07]} 6. a4 {[%emt 0:04:59]} b4 {[%emt 0:01:22]} 7. e5 {[%emt 0:00:15]} bxc3 {[%emt 0:13:08]} 8. exf6 {[%emt 0:00:09]} cxb2 {[%emt 0:00:05]} 9. fxg7 {[%emt 0:03:42]} Bxg7 {[%emt 0:23:13]} 10. Bxb2 {[%emt 0:00:22]} Ba6 {[%emt 0:12:04]} 11. Be2 {[%emt 0:09:59]} O-O {[%emt 0:03:33]} 12. O-O {[%emt 0:08:17]} c5 {[%emt 0:04:53]} 13. Qc2 {[%emt 0:11:38]} cxd4 {[%emt 0:03:45]} 14. Qe4 {[%emt 0:04:35]} Nd7 {[%emt 0:02:00]} 15. Bxd4 {[%emt 0:01:43]} Bxd4 {[%emt 0:06:20]} 16. Nxd4 {[%emt 0:04:23]} Nf6 {[%emt 0:04:44]} 17. Qh4 {[%emt 0:00:41]} Qa5 {[%emt 0:02:59]} 18. Bf3 {[%emt 0:03:38]} Rac8 {[%emt 0:01:27]} 19. g4 {[%emt 0:01:09]} Rc5 {[%emt 0:05:57]} 20. Nf5 {[%emt 0:01:02]} Rxf5 {[%emt 0:00:06]} 21. gxf5 {[%emt 0:00:07]} Qxf5 {[%emt 0:00:16]} 22. Bg2 {[%emt 0:01:43]} Kh8 {[%emt 0:03:14]} 23. Rfe1 {[%emt 0:03:45]} Rg8 {[%emt 0:01:51]} 24. Ra3 {[%emt 0:03:37]} e6 {[%emt 0:05:05]} 25. Qd4 {[%emt 0:03:00]} Bb7 {[%emt 0:01:59]} 26. Rg3 {[%emt 0:00:10]} Rxg3 {[%emt 0:01:39]} 27. hxg3 {[%emt 0:00:44]} Bxg2 {[%emt 0:00:04]} 28. Kxg2 {[%emt 0:00:21]} Qd5+ {[%emt 0:00:32]} 29. Qxd5 {[%emt 0:00:25]} exd5 {[%emt 0:01:01]} 30. Kf3 {[%emt 0:01:35]} d4 {[%emt 0:00:39]} 31. Rc1 {[%emt 0:02:41]} Nd7 {[%emt 0:01:37]} 32. Ke2 {[%emt 0:02:17]} c3 {[%emt 0:00:25]} 33. Rd1 {[%emt 0:03:46]} c2 {[%emt 0:00:21]} 34. Rh1 {[%emt 0:02:12]} Nc5 {[%emt 0:00:12]} 35. Kd2 {[%emt 0:00:26]} d3 {[%emt 0:00:05]} 36. Kc3 {[%emt 0:00:13]} Kg7 {[%emt 0:00:36]} 37. f3 {[%emt 0:00:30]} Kg6 {[%emt 0:01:27]} 38. a5 {[%emt 0:00:49]} a6 {[%emt 0:00:06]} 39. Kb2 {[%emt 0:00:42]} Na4+ {[%emt 0:00:59]} 40. Kc1 {[%emt 0:00:00]} Nc5 {[%emt 0:00:00]} 41. Kb2 {[%emt 0:02:33]} Na4+ {[%emt 0:02:03]} 42. Kb3 {[%emt 0:00:50]} Kf5 {[%emt 0:02:53]} 43. Ra1 {[%emt 0:01:50]} Ke5 {[%emt 0:02:03]} 44. Re1+ {[%emt 0:07:13]} Kd5 {[%emt 0:01:29]} 45. Ra1 {[%emt 0:00:41]} f5 {[%emt 0:00:24]} 46. g4 {[%emt 0:01:14]} fxg4 {[%emt 0:00:29]} 47. fxg4 {[%emt 0:00:15]} h6 {[%emt 0:00:18]} 48. Rh1 {[%emt 0:03:40]} Kd4 {[%emt 0:02:29]} 49. Ra1 {[%emt 0:00:33]} Ke3 {[%emt 0:00:09]} 50. Rh1 {[%emt 0:00:42]} Kd4 {[%emt 0:03:35]} 51. Ra1 {[%emt 0:01:08]} Nc3 {[%emt 0:01:13]} 52. Kb2 {[%emt 0:01:46]} Ne2 {[%emt 0:00:19]} 53. Ra4+ {[%emt 0:01:52]} Ke3 {[%emt 0:00:05]} 54. Ra1 {[%emt 0:00:03]} c1=Q+ {[%emt 0:00:05]} 55. Rxc1 {[%emt 0:00:07]} Nxc1 {[%emt 0:00:04]} 56. Kxc1 {[%emt 0:00:03]} Ke2 {[%emt 0:00:01]} 0-1

[Event "HUN-ch U8-U18 2019"]
[Site "Balatonlelle"]
[Date "2019.06.23"]
[Round "3.18"]
[White "Gulacsi, Donat Ferenc"]
[Black "Tran, David"]
[Result "1/2-1/2"]
[ECO "C48"]
[WhiteElo "1638"]
[BlackElo "2078"]
[Annotator "NA"]
[PlyCount "98"]
[EventDate "2019.06.21"]
[EventType "swiss"]
[EventCountry "HUN"]
[SourceTitle "playchess.com"]
[Source "ChessBase"]
[SourceQuality "1"]
[TimeControl "40/5400+30:1800+30"]

1. e4 {[%emt 0:00:03]} e5 {[%emt 0:00:06]} 2. Nf3 {[%emt 0:00:04]} Nc6 {[%emt 0:00:04]} 3. Nc3 {[%emt 0:00:09]} Nf6 {[%emt 0:00:08]} 4. Bb5 {[%emt 0:00:12]} Bd6 {[%emt 0:00:05]} 5. O-O {[%emt 0:03:15]} O-O {[%emt 0:02:49]} 6. d3 {[%emt 0:15:10]} a6 {[%emt 0:00:14]} 7. Ba4 {[%emt 0:00:16]} h6 {[%emt 0:00:05]} 8. Be3 {[%emt 0:04:05]} b5 {[%emt 0:00:16]} 9. Bb3 {[%emt 0:00:09]} Ng4 {[%emt 0:00:45]} 10. Bd2 {[%emt 0:01:51]} Na5 {[%emt 0:00:05]} 11. h3 {[%emt 0:00:50]} Nf6 {[%emt 0:00:05]} 12. Ne2 {[%emt 0:03:13]} Nxb3 {[%emt 0:01:24]} 13. axb3 {[%emt 0:00:04]} Re8 {[%emt 0:00:45]} 14. Ng3 {[%emt 0:03:19]} Bf8 {[%emt 0:01:02]} 15. Nf5 d5 {[%emt 0:01:10]} 16. Qe2 {[%emt 0:13:18]} dxe4 {[%emt 0:07:10]} 17. dxe4 {[%emt 0:00:14]} Bxf5 {[%emt 0:06:47]} 18. exf5 {[%emt 0:00:09]} e4 {[%emt 0:00:02]} 19. Nh2 {[%emt 0:00:53]} Qd5 {[%emt 0:01:41]} 20. Ng4 {[%emt 0:04:44]} Qxf5 {[%emt 0:01:27]} 21. Nxf6+ {[%emt 0:00:51]} Qxf6 {[%emt 0:00:12]} 22. Bc3 {[%emt 0:00:26]} Qe6 {[%emt 0:01:44]} 23. Rfe1 {[%emt 0:01:05]} Bc5 {[%emt 0:03:27]} 24. Rad1 {[%emt 0:01:15]} f5 {[%emt 0:01:18]} 25. Bd4 {[%emt 0:04:06]} Bxd4 {[%emt 0:01:49]} 26. Rxd4 {[%emt 0:00:07]} Rad8 {[%emt 0:06:57]} 27. Red1 {[%emt 0:02:28]} Qf6 {[%emt 0:00:50]} 28. Qd2 {[%emt 0:01:30]} Rxd4 {[%emt 0:01:40]} 29. Qxd4 {[%emt 0:00:16]} Qxd4 {[%emt 0:06:34]} 30. Rxd4 {[%emt 0:00:05]} Re6 {[%emt 0:04:11]} 31. Rd5 {[%emt 0:02:50]} Rf6 {[%emt 0:00:17]} 32. Kf1 {[%emt 0:00:45]} Kh7 {[%emt 0:00:19]} 33. Ke2 {[%emt 0:01:07]} Kg6 {[%emt 0:00:37]} 34. Ke3 {[%emt 0:01:12]} Rc6 {[%emt 0:03:50]} 35. c3 {[%emt 0:00:55]} Kf6 {[%emt 0:00:11]} 36. g4 {[%emt 0:04:28]} fxg4 {[%emt 0:02:53]} 37. hxg4 {[%emt 0:00:37]} Re6 {[%emt 0:01:52]} 38. Kf4 {[%emt 0:03:00]} g5+ {[%emt 0:00:13]} 39. Ke3 {[%emt 0:00:10]} Ke7 {[%emt 0:00:52]} 40. b4 {[%emt 0:00:00]} c6 {[%emt 0:00:00]} 41. Rd4 {[%emt 0:03:10]} Re5 {[%emt 0:06:24]} 42. Rxe4 {[%emt 0:00:38]} Kd6 {[%emt 0:01:48]} 43. Rxe5 {[%emt 0:01:40]} Kxe5 {[%emt 0:00:20]} 44. f3 {[%emt 0:00:31]} Kd5 {[%emt 0:00:40]} 45. b3 {[%emt 0:00:47]} Ke5 {[%emt 0:00:59]} 46. c4 {[%emt 0:00:24]} bxc4 {[%emt 0:02:46]} 47. bxc4 {[%emt 0:00:33]} c5 {[%emt 0:00:52]} 48. b5 {[%emt 0:01:00]} a5 {[%emt 0:00:57]} 49. Kd3 {[%emt 0:00:53]} Kd6 {[%emt 0:00:13]} 1/2-1/2

[Event "HUN-ch U8-U18 2019"]
[Site "Balatonlelle"]
[Date "2019.06.23"]
[Round "3.19"]
[White "Vodila, Martin Botond"]
[Black "Monduk, Ferenc"]
[Result "0-1"]
[ECO "C02"]
[WhiteElo "2243"]
[BlackElo "1717"]
[Annotator "NA"]
[PlyCount "156"]
[EventDate "2019.06.21"]
[EventType "swiss"]
[EventCountry "HUN"]
[SourceTitle "playchess.com"]
[Source "ChessBase"]
[SourceQuality "1"]
[TimeControl "40/5400+30:1800+30"]

1. e4 {[%emt 0:00:03]} e6 {[%emt 0:00:04]} 2. d4 {[%emt 0:01:59]} d5 {[%emt 0:00:03]} 3. e5 {[%emt 0:00:57]} c5 {[%emt 0:00:05]} 4. c3 {[%emt 0:00:06]} Nc6 {[%emt 0:00:03]} 5. Nf3 {[%emt 0:00:08]} Nge7 {[%emt 0:00:04]} 6. Bd3 {[%emt 0:03:47]} cxd4 {[%emt 0:00:06]} 7. cxd4 {[%emt 0:00:09]} Nf5 {[%emt 0:00:02]} 8. Bxf5 {[%emt 0:00:38]} exf5 {[%emt 0:00:01]} 9. Nc3 {[%emt 0:00:27]} Be7 {[%emt 0:00:16]} 10. Qb3 {[%emt 0:01:25]} g5 {[%emt 0:00:42]} 11. Qxd5 {[%emt 0:10:00]} g4 {[%emt 0:00:10]} 12. Qxd8+ {[%emt 0:03:47]} Bxd8 {[%emt 0:00:06]} 13. d5 {[%emt 0:11:01]} gxf3 {[%emt 0:01:51]} 14. dxc6 {[%emt 0:00:06]} fxg2 {[%emt 0:00:04]} 15. Rg1 {[%emt 0:00:07]} Rg8 {[%emt 0:00:06]} 16. Nd5 {[%emt 0:03:15]} bxc6 {[%emt 0:07:55]} 17. Ne3 {[%emt 0:01:32]} f4 {[%emt 0:12:53]} 18. Rxg2 {[%emt 0:06:04]} Rxg2 {[%emt 0:06:16]} 19. Nxg2 {[%emt 0:00:02]} f3 {[%emt 0:00:08]} 20. Nf4 {[%emt 0:04:09]} Bc7 {[%emt 0:01:12]} 21. Be3 {[%emt 0:07:38]} Bxe5 {[%emt 0:02:38]} 22. O-O-O {[%emt 0:00:20]} Bf5 {[%emt 0:05:51]} 23. Rg1 {[%emt 0:04:22]} Ke7 {[%emt 0:02:22]} 24. Rg5 {[%emt 0:08:53]} Kf6 {[%emt 0:03:57]} 25. Nh5+ {[%emt 0:01:23]} Ke6 {[%emt 0:00:23]} 26. Bf4 {[%emt 0:07:37]} h6 {[%emt 0:01:27]} 27. Rg1 {[%emt 0:05:16]} Bxf4+ {[%emt 0:04:53]} 28. Nxf4+ {[%emt 0:00:02]} Ke5 {[%emt 0:00:42]} 29. Nh5 {[%emt 0:00:20]} Rb8 {[%emt 0:00:47]} 30. Re1+ {[%emt 0:00:19]} Be4 {[%emt 0:01:06]} 31. Nf6 {[%emt 0:02:59]} Kxf6 {[%emt 0:03:52]} 32. Rxe4 {[%emt 0:00:05]} Kg5 {[%emt 0:00:07]} 33. Rc4 {[%emt 0:01:36]} Re8 {[%emt 0:00:40]} 34. Rc3 {[%emt 0:11:43]} Re1+ {[%emt 0:00:12]} 35. Kd2 {[%emt 0:00:05]} Re2+ {[%emt 0:00:03]} 36. Kd1 {[%emt 0:00:03]} Rxf2 {[%emt 0:00:09]} 37. Ke1 {[%emt 0:00:03]} Re2+ {[%emt 0:00:23]} 38. Kf1 {[%emt 0:00:02]} Rxb2 {[%emt 0:00:25]} 39. Rxf3 {[%emt 0:00:07]} Rxa2 {[%emt 0:00:06]} 40. Rxf7 {[%emt 0:00:00]} Rxh2 {[%emt 0:00:00]} 41. Rxa7 {[%emt 0:00:14]} Rc2 {[%emt 0:01:43]} 42. Rg7+ {[%emt 0:00:14]} Kf5 {[%emt 0:00:46]} 43. Rh7 {[%emt 0:00:13]} Kg5 {[%emt 0:00:49]} 44. Rg7+ {[%emt 0:00:02]} Kh4 {[%emt 0:01:00]} 45. Ke1 {[%emt 0:00:36]} h5 {[%emt 0:00:43]} 46. Rh7 {[%emt 0:00:21]} Rc5 {[%emt 0:00:18]} 47. Kd2 {[%emt 0:00:20]} Kg3 {[%emt 0:00:18]} 48. Rg7+ {[%emt 0:00:29]} Kh3 {[%emt 0:00:13]} 49. Rh7 {[%emt 0:00:16]} Rg5 {[%emt 0:00:18]} 50. Ke2 {[%emt 0:00:20]} h4 {[%emt 0:00:32]} 51. Kf2 {[%emt 0:00:23]} Rf5+ {[%emt 0:00:19]} 52. Kg1 {[%emt 0:00:10]} c5 {[%emt 0:00:28]} 53. Rc7 {[%emt 0:00:07]} Rg5+ {[%emt 0:01:18]} 54. Kh1 {[%emt 0:00:09]} Rd5 {[%emt 0:00:04]} 55. Kg1 {[%emt 0:00:05]} Rd1+ {[%emt 0:00:15]} 56. Kf2 {[%emt 0:00:02]} Rc1 {[%emt 0:00:12]} 57. Ke2 {[%emt 0:00:19]} Kh2 {[%emt 0:00:15]} 58. Kd2 {[%emt 0:00:02]} Rc4 {[%emt 0:00:16]} 59. Kd3 {[%emt 0:00:04]} Rd4+ {[%emt 0:00:11]} 60. Ke3 {[%emt 0:00:04]} Rd5 {[%emt 0:02:48]} 61. Ke4 {[%emt 0:00:17]} Rh5 {[%emt 0:01:15]} 62. Kf3 {[%emt 0:01:15]} Rd5 {[%emt 0:01:27]} 63. Ke4 {[%emt 0:00:02]} Rh5 {[%emt 0:00:23]} 64. Kf3 {[%emt 0:00:05]} h3 {[%emt 0:02:52]} 65. Rc8 {[%emt 0:00:10]} Kg1 {[%emt 0:02:47]} 66. Rb8 {[%emt 0:00:14]} Rf5+ {[%emt 0:00:18]} 67. Kg4 {[%emt 0:00:35]} Rd5 {[%emt 0:01:39]} 68. Kxh3 {[%emt 0:00:05]} Kf2 {[%emt 0:00:10]} 69. Kg4 {[%emt 0:00:13]} Ke3 {[%emt 0:00:12]} 70. Re8+ {[%emt 0:00:13]} Kd2 {[%emt 0:00:12]} 71. Kf3 {[%emt 0:00:20]} c4 {[%emt 0:00:09]} 72. Re2+ {[%emt 0:01:24]} Kd1 {[%emt 0:00:37]} 73. Rh2 {[%emt 0:00:55]} c3 {[%emt 0:00:19]} 74. Ke3 {[%emt 0:00:07]} Kc1 {[%emt 0:00:33]} 75. Rh8 {[%emt 0:01:07]} c2 {[%emt 0:00:48]} 76. Ke2 {[%emt 0:00:04]} Re5+ {[%emt 0:01:43]} 77. Kd3 {[%emt 0:00:08]} Rb5 {[%emt 0:01:18]} 78. Kc4 {[%emt 0:06:41]} Rb7 {[%emt 0:00:32]} 0-1

[Event "HUN-ch U8-U18 2019"]
[Site "Balatonlelle"]
[Date "2019.06.23"]
[Round "3.19"]
[White "Palczert, Matyas"]
[Black "Szikszai, Bertalan"]
[Result "1-0"]
[ECO "B40"]
[WhiteElo "2007"]
[BlackElo "1896"]
[Annotator "NA"]
[PlyCount "119"]
[EventDate "2019.06.21"]
[EventType "swiss"]
[EventCountry "HUN"]
[SourceTitle "playchess.com"]
[Source "ChessBase"]
[SourceQuality "1"]
[TimeControl "40/5400+30:1800+30"]

1. e4 {[%emt 0:00:04]} c5 {[%emt 0:00:04]} 2. Nf3 {[%emt 0:00:10]} e6 {[%emt 0:00:08]} 3. b3 {[%emt 0:00:40]} Nc6 {[%emt 0:03:28]} 4. Bb2 {[%emt 0:00:18]} d6 {[%emt 0:02:01]} 5. Bb5 {[%emt 0:06:54]} Bd7 {[%emt 0:04:38]} 6. O-O {[%emt 0:01:08]} Nf6 {[%emt 0:01:34]} 7. Re1 {[%emt 0:02:09]} Be7 {[%emt 0:01:01]} 8. d3 {[%emt 0:05:51]} O-O {[%emt 0:02:38]} 9. Nbd2 {[%emt 0:00:52]} a6 {[%emt 0:02:59]} 10. Bxc6 {[%emt 0:00:11]} Bxc6 {[%emt 0:00:11]} 11. e5 {[%emt 0:03:03]} dxe5 {[%emt 0:06:44]} 12. Nxe5 {[%emt 0:00:23]} Qc7 {[%emt 0:01:42]} 13. Nxc6 {[%emt 0:06:45]} Qxc6 {[%emt 0:00:24]} 14. Ne4 {[%emt 0:02:15]} Nxe4 {[%emt 0:14:32]} 15. Rxe4 {[%emt 0:00:28]} Rfe8 {[%emt 0:08:21]} 16. Qh5 {[%emt 0:06:11]} g6 {[%emt 0:01:18]} 17. Qe5 {[%emt 0:03:23]} f6 {[%emt 0:01:37]} 18. Qxe6+ {[%emt 0:00:46]} Qxe6 {[%emt 0:00:13]} 19. Rxe6 {[%emt 0:00:06]} Kf7 {[%emt 0:03:47]} 20. Rae1 {[%emt 0:00:28]} Rad8 {[%emt 0:02:15]} 21. Rb6 {[%emt 0:02:31]} Rd7 {[%emt 0:02:13]} 22. Ree6 {[%emt 0:03:12]} f5 {[%emt 0:02:37]} 23. Re3 {[%emt 0:02:40]} Bd6 {[%emt 0:05:23]} 24. g3 {[%emt 0:06:36]} Rxe3 {[%emt 0:00:49]} 25. fxe3 {[%emt 0:00:05]} Be7 {[%emt 0:00:28]} 26. Be5 {[%emt 0:01:28]} Rd5 {[%emt 0:10:59]} 27. Bb8 {[%emt 0:05:41]} Rd7 {[%emt 0:01:25]} 28. Kf1 {[%emt 0:00:29]} Ke8 {[%emt 0:08:13]} 29. Be5 {[%emt 0:01:07]} Rd5 {[%emt 0:00:42]} 30. d4 {[%emt 0:00:48]} cxd4 {[%emt 0:00:30]} 31. exd4 {[%emt 0:00:27]} Rd7 {[%emt 0:02:35]} 32. c4 {[%emt 0:02:04]} Bd8 {[%emt 0:02:52]} 33. Rb4 {[%emt 0:01:35]} Ba5 {[%emt 0:01:04]} 34. Ra4 {[%emt 0:00:51]} Bc3 {[%emt 0:00:20]} 35. c5 {[%emt 0:00:32]} Rd5 {[%emt 0:06:04]} 36. Ke2 {[%emt 0:01:07]} Kd7 {[%emt 0:00:21]} 37. Kd3 {[%emt 0:02:05]} Be1 {[%emt 0:00:31]} 38. Kc4 {[%emt 0:00:32]} Kc6 {[%emt 0:00:22]} 39. b4 {[%emt 0:00:51]} Rd8 {[%emt 0:01:20]} 40. Ra5 {[%emt 0:00:00]} b5+ {[%emt 0:00:00]} 41. cxb6 {[%emt 0:01:55]} Kxb6 {[%emt 0:01:12]} 42. Rc5 {[%emt 0:01:17]} Rd7 {[%emt 0:03:04]} 43. a4 {[%emt 0:01:17]} Bd2 {[%emt 0:04:15]} 44. b5 {[%emt 0:02:10]} a5 {[%emt 0:02:27]} 45. Rc6+ {[%emt 0:01:34]} Kb7 {[%emt 0:00:20]} 46. d5 {[%emt 0:01:13]} Be3 {[%emt 0:01:43]} 47. d6 {[%emt 0:01:20]} Bb6 {[%emt 0:01:23]} 48. Kd5 {[%emt 0:00:43]} Rd8 {[%emt 0:00:34]} 49. Bd4 {[%emt 0:02:32]} Bxd4 {[%emt 0:02:16]} 50. Kxd4 {[%emt 0:00:11]} h5 {[%emt 0:01:10]} 51. Ke5 {[%emt 0:00:45]} Re8+ {[%emt 0:01:46]} 52. Kf6 {[%emt 0:00:11]} Rf8+ {[%emt 0:00:24]} 53. Ke7 {[%emt 0:00:12]} Rh8 {[%emt 0:00:20]} 54. d7 {[%emt 0:01:10]} Rh7+ {[%emt 0:00:15]} 55. Kd6 {[%emt 0:00:10]} Rh8 {[%emt 0:00:31]} 56. Rc1 {[%emt 0:00:51]} g5 {[%emt 0:00:42]} 57. Re1 {[%emt 0:00:43]} Rh6+ {[%emt 0:00:48]} 58. Re6 {[%emt 0:00:14]} Rh8 {[%emt 0:00:06]} 59. Re8 {[%emt 0:00:11]} Rh6+ {[%emt 0:00:11]} 60. Kd5 {[%emt 0:00:11]} 1-0